[Event "Late-Titled-Tuesday-Blitz-August-29-2023"]
[Site "Chess.com"]
[Date "2023.08.29"]
[Round "1"]
[White "burbur555"]
[Black "Sacbutt"]
[Result "0-1"]
[WhiteElo "2544"]
[BlackElo "2234"]
[TimeControl "180+1"]
[EndTime "14:08:34 PDT"]
[Termination "Sacbutt won by resignation"]

1. c4 {[%clk 0:02:58.5]} 1... Nf6 {[%clk 0:02:59]} 2. g3 {[%clk 0:02:57.9]} 2...
e6 {[%clk 0:02:58.2]} 3. Bg2 {[%clk 0:02:58]} 3... d5 {[%clk 0:02:58.5]} 4. Nf3
{[%clk 0:02:58.2]} 4... Be7 {[%clk 0:02:58.9]} 5. O-O {[%clk 0:02:57.7]} 5...
O-O {[%clk 0:02:59.4]} 6. d4 {[%clk 0:02:56.7]} 6... dxc4 {[%clk 0:02:59.6]} 7.
Na3 {[%clk 0:02:55.7]} 7... Nc6 {[%clk 0:02:54.6]} 8. Nxc4 {[%clk 0:02:54.8]}
8... Rb8 {[%clk 0:02:49.3]} 9. Bf4 {[%clk 0:02:44.3]} 9... Nb4 {[%clk
0:02:37.8]} 10. a3 {[%clk 0:02:41.1]} 10... Nbd5 {[%clk 0:02:37.6]} 11. Bd2
{[%clk 0:02:40.1]} 11... c5 {[%clk 0:02:32.4]} 12. dxc5 {[%clk 0:02:39.2]} 12...
Bxc5 {[%clk 0:02:32]} 13. b4 {[%clk 0:02:39.3]} 13... Be7 {[%clk 0:02:27.1]} 14.
Rc1 {[%clk 0:02:37.8]} 14... b6 {[%clk 0:02:21.8]} 15. Nd4 {[%clk 0:02:31]}
15... Bb7 {[%clk 0:02:11.8]} 16. b5 {[%clk 0:02:12.3]} 16... Bc5 {[%clk
0:01:40.5]} 17. Nc6 {[%clk 0:02:00.6]} 17... Bxc6 {[%clk 0:01:39.1]} 18. bxc6
{[%clk 0:02:01.1]} 18... Qc7 {[%clk 0:01:37.5]} 19. e4 {[%clk 0:01:59.6]} 19...
Ne7 {[%clk 0:01:28.2]} 20. Bf4 {[%clk 0:01:57.9]} 20... Qxc6 {[%clk 0:01:28.7]}
21. Bxb8 {[%clk 0:01:56.8]} 21... Rxb8 {[%clk 0:01:29.6]} 22. Qb3 {[%clk
0:01:51.5]} 22... Qc7 {[%clk 0:01:23.7]} 23. Nb2 {[%clk 0:01:40.7]} 23... Qb7
{[%clk 0:00:51.8]} 24. Nd3 {[%clk 0:01:36.8]} 24... Bd4 {[%clk 0:00:51.7]} 25.
Rc4 {[%clk 0:01:27.2]} 25... e5 {[%clk 0:00:48]} 26. Rfc1 {[%clk 0:01:24.8]}
26... Ne8 {[%clk 0:00:24.7]} 27. Nb4 {[%clk 0:01:16.2]} 27... Qd7 {[%clk
0:00:20.3]} 28. Nd5 {[%clk 0:01:11.5]} 28... Nxd5 {[%clk 0:00:14.2]} 29. exd5
{[%clk 0:01:11.1]} 29... Rd8 {[%clk 0:00:13.3]} 30. Qc2 {[%clk 0:01:08.3]} 30...
g6 {[%clk 0:00:13.1]} 31. Rc8 {[%clk 0:01:07.4]} 31... Kg7 {[%clk 0:00:13.2]}
32. Rxd8 {[%clk 0:01:06.1]} 32... Qxd8 {[%clk 0:00:14.1]} 33. Qc6 {[%clk
0:01:02.6]} 33... Nd6 {[%clk 0:00:13.2]} 34. Rc2 {[%clk 0:00:58.3]} 34... Qf6
{[%clk 0:00:11.5]} 35. a4 {[%clk 0:00:57.5]} 35... h5 {[%clk 0:00:10.6]} 36. h4
{[%clk 0:00:56.3]} 36... Qf5 {[%clk 0:00:06.4]} 37. Re2 {[%clk 0:00:51.9]} 37...
Qf6 {[%clk 0:00:06.1]} 38. Kh2 {[%clk 0:00:37.3]} 38... Bc5 {[%clk 0:00:06.5]}
39. f3 {[%clk 0:00:35.6]} 39... Qf5 {[%clk 0:00:05.8]} 40. a5 {[%clk 0:00:22.8]}
40... Qd3 {[%clk 0:00:05.2]} 41. Ra2 {[%clk 0:00:20.6]} 41... Qa6 {[%clk
0:00:04.7]} 42. Ra4 {[%clk 0:00:19.1]} 42... Qb7 {[%clk 0:00:02]} 43. Qxb7
{[%clk 0:00:18.2]} 43... Nxb7 {[%clk 0:00:02.9]} 44. axb6 {[%clk 0:00:18]} 44...
axb6 {[%clk 0:00:03.6]} 45. Ra7 {[%clk 0:00:17]} 45... Nd6 {[%clk 0:00:04.2]}
46. Rc7 {[%clk 0:00:16.3]} 46... Nf5 {[%clk 0:00:04.3]} 47. f4 {[%clk
0:00:15.4]} 47... exf4 {[%clk 0:00:04.4]} 48. gxf4 {[%clk 0:00:15.2]} 48... Nxh4
{[%clk 0:00:04.5]} 49. Bh3 {[%clk 0:00:15.3]} 49... Nf3+ {[%clk 0:00:04.6]} 50.
Kg3 {[%clk 0:00:15.3]} 50... Nd4 {[%clk 0:00:04.9]} 51. Rd7 {[%clk 0:00:14.5]}
51... Kf6 {[%clk 0:00:04.6]} 52. Bg2 {[%clk 0:00:11.6]} 52... Nf5+ {[%clk
0:00:03.7]} 53. Kf3 {[%clk 0:00:10.9]} 53... Nd6 {[%clk 0:00:04.6]} 54. Bh3
{[%clk 0:00:09.8]} 54... Nb5 {[%clk 0:00:04.9]} 55. Rd8 {[%clk 0:00:09.4]} 55...
Nd4+ {[%clk 0:00:05]} 56. Ke4 {[%clk 0:00:09]} 56... Nb5 {[%clk 0:00:05.9]} 57.
Rd7 {[%clk 0:00:08.2]} 57... Nd6+ {[%clk 0:00:06.3]} 58. Kd3 {[%clk 0:00:08.8]}
58... Nb5 {[%clk 0:00:06.7]} 59. Rb7 {[%clk 0:00:08.4]} 59... Nd6 {[%clk
0:00:07]} 60. Rb8 {[%clk 0:00:08.7]} 60... Nb5 {[%clk 0:00:07.5]} 61. Rd8 {[%clk
0:00:08.9]} 61... Nd6 {[%clk 0:00:07.8]} 62. Bd7 {[%clk 0:00:08.1]} 62... Ke7
{[%clk 0:00:07.8]} 63. Rh8 {[%clk 0:00:06.2]} 63... Kxd7 {[%clk 0:00:08]} 64.
Ke2 {[%clk 0:00:05.8]} 64... Ke7 {[%clk 0:00:08.4]} 65. Kf3 {[%clk 0:00:06.5]}
65... Kf6 {[%clk 0:00:09]} 66. f5 {[%clk 0:00:06.8]} 66... Nxf5 {[%clk
0:00:09.3]} 67. Re8 {[%clk 0:00:06.5]} 67... Nd6 {[%clk 0:00:09.5]} 68. Rd8
{[%clk 0:00:06.4]} 68... Ke5 {[%clk 0:00:09.9]} 69. Rd7 {[%clk 0:00:06.7]} 69...
Kxd5 {[%clk 0:00:10.2]} 70. Kf4 {[%clk 0:00:07.3]} 70... Kc6 {[%clk 0:00:10.5]}
71. Ke5 {[%clk 0:00:07.5]} 71... Kxd7 {[%clk 0:00:10.5]} 72. Kd5 {[%clk
0:00:08.2]} 72... h4 {[%clk 0:00:10.2]} 0-1

[Event "Late-Titled-Tuesday-Blitz-August-29-2023"]
[Site "Chess.com"]
[Date "2023.08.29"]
[Round "1"]
[White "AlexOstrovskiy"]
[Black "ShrookWafa"]
[Result "1-0"]
[WhiteElo "2762"]
[BlackElo "2432"]
[TimeControl "180+1"]
[EndTime "14:08:36 PDT"]
[Termination "AlexOstrovskiy won by resignation"]

1. e4 {[%clk 0:02:58.3]} 1... c5 {[%clk 0:02:59.8]} 2. b3 {[%clk 0:02:58.4]}
2... Nc6 {[%clk 0:02:59.6]} 3. Bb2 {[%clk 0:02:58.5]} 3... d6 {[%clk 0:02:59.2]}
4. Bb5 {[%clk 0:02:58.4]} 4... Bd7 {[%clk 0:02:59.1]} 5. f4 {[%clk 0:02:58.3]}
5... e6 {[%clk 0:02:59.3]} 6. Nf3 {[%clk 0:02:57.9]} 6... Nf6 {[%clk 0:02:59.5]}
7. d3 {[%clk 0:02:57.6]} 7... Be7 {[%clk 0:02:59.8]} 8. O-O {[%clk 0:02:56.2]}
8... O-O {[%clk 0:02:58.1]} 9. Nbd2 {[%clk 0:02:56.5]} 9... a6 {[%clk
0:02:57.3]} 10. Bxc6 {[%clk 0:02:56.4]} 10... Bxc6 {[%clk 0:02:58.2]} 11. Qe1
{[%clk 0:02:56.7]} 11... b5 {[%clk 0:02:56.1]} 12. e5 {[%clk 0:02:56.1]} 12...
dxe5 {[%clk 0:02:53.4]} 13. Nxe5 {[%clk 0:02:56.2]} 13... Bb7 {[%clk 0:02:52.7]}
14. Qg3 {[%clk 0:02:52.5]} 14... Qd5 {[%clk 0:02:42.3]} 15. Rae1 {[%clk
0:02:47.3]} 15... Rad8 {[%clk 0:02:41.5]} 16. Ne4 {[%clk 0:02:41.1]} 16... c4
{[%clk 0:02:31.8]} 17. bxc4 {[%clk 0:02:23.7]} 17... bxc4 {[%clk 0:02:31.7]} 18.
Nxc4 {[%clk 0:02:23.8]} 18... Qf5 {[%clk 0:02:12.2]} 19. Ncd6 {[%clk 0:02:07]}
19... Rxd6 {[%clk 0:02:04.4]} 20. Nxd6 {[%clk 0:01:46]} 20... Bxd6 {[%clk
0:02:03.6]} 21. Re5 {[%clk 0:01:20]} 21... Bxe5 {[%clk 0:01:50.3]} 22. fxe5
{[%clk 0:01:20.9]} 22... Nh5 {[%clk 0:01:38.7]} 23. Qh4 {[%clk 0:01:04.7]} 23...
Qg6 {[%clk 0:01:32.8]} 24. g4 {[%clk 0:01:04.9]} 24... f5 {[%clk 0:01:25.3]} 25.
Qxh5 {[%clk 0:01:00.3]} 25... Qxh5 {[%clk 0:01:03.2]} 26. gxh5 {[%clk
0:00:58.5]} 26... Bd5 {[%clk 0:01:03.5]} 27. c4 {[%clk 0:00:53.1]} 27... Bc6
{[%clk 0:01:03.4]} 28. Kf2 {[%clk 0:00:45.6]} 28... Rb8 {[%clk 0:01:03]} 29. Bc3
{[%clk 0:00:42.6]} 29... Kf7 {[%clk 0:01:01]} 30. Ke3 {[%clk 0:00:42.7]} 30...
g6 {[%clk 0:00:57.9]} 31. hxg6+ {[%clk 0:00:30]} 31... hxg6 {[%clk 0:00:58]} 32.
h4 {[%clk 0:00:30.9]} 32... Rh8 {[%clk 0:00:57.4]} 33. Rf4 {[%clk 0:00:18.6]}
33... g5 {[%clk 0:00:53.9]} 34. hxg5 {[%clk 0:00:18.6]} 34... Kg6 {[%clk
0:00:54.2]} 35. Rd4 {[%clk 0:00:09.5]} 35... Rh3+ {[%clk 0:00:51.4]} 36. Kd2
{[%clk 0:00:09.3]} 36... Rh2+ {[%clk 0:00:44.7]} 37. Kc1 {[%clk 0:00:07.7]}
37... Rxa2 {[%clk 0:00:44.6]} 38. Rd6 {[%clk 0:00:05.9]} 38... Bf3 {[%clk
0:00:44.5]} 39. Bd2 {[%clk 0:00:05]} 39... Kf7 {[%clk 0:00:40.9]} 40. Rd7+
{[%clk 0:00:05]} 40... Ke8 {[%clk 0:00:40]} 41. Rd6 {[%clk 0:00:05.9]} 41... Ke7
{[%clk 0:00:40.1]} 42. g6 {[%clk 0:00:05.9]} 42... Bh5 {[%clk 0:00:39.4]} 43.
Bg5+ {[%clk 0:00:05.8]} 43... Kf8 {[%clk 0:00:38.3]} 44. Rxe6 {[%clk 0:00:05.4]}
44... Kg7 {[%clk 0:00:38.1]} 45. Rd6 {[%clk 0:00:03.2]} 45... Bxg6 {[%clk
0:00:38]} 46. e6 {[%clk 0:00:03.6]} 46... Re2 {[%clk 0:00:36.7]} 47. e7 {[%clk
0:00:03.7]} 47... Kf7 {[%clk 0:00:35.4]} 48. c5 {[%clk 0:00:03.7]} 48... f4
{[%clk 0:00:34]} 49. Rf6+ {[%clk 0:00:03.9]} 49... Kg7 {[%clk 0:00:33.2]} 50.
Rxf4 {[%clk 0:00:04]} 50... Bxd3 {[%clk 0:00:32.8]} 51. Rf8 {[%clk 0:00:04.1]}
51... Bb5 {[%clk 0:00:32.7]} 52. Bf6+ {[%clk 0:00:02.1]} 52... Kg6 {[%clk
0:00:32.2]} 53. Kd1 {[%clk 0:00:03]} 53... Re6 {[%clk 0:00:31.5]} 54. Bh4 {[%clk
0:00:03]} 54... Kh5 {[%clk 0:00:31.3]} 55. Rh8+ {[%clk 0:00:02.6]} 55... Kg6
{[%clk 0:00:30.9]} 56. Kd2 {[%clk 0:00:03.3]} 56... Kf7 {[%clk 0:00:31]} 57. Kc3
{[%clk 0:00:02.8]} 57... Re3+ {[%clk 0:00:30.5]} 58. Kd4 {[%clk 0:00:03.4]}
58... Re2 {[%clk 0:00:29.9]} 59. Kd5 {[%clk 0:00:03.5]} 59... Rd2+ {[%clk
0:00:29.6]} 60. Ke5 {[%clk 0:00:04.1]} 60... Re2+ {[%clk 0:00:29.9]} 61. Kd6
{[%clk 0:00:04.6]} 61... Rd2+ {[%clk 0:00:29.3]} 62. Kc7 {[%clk 0:00:04.9]}
62... Rc2 {[%clk 0:00:28.1]} 63. Rf8+ {[%clk 0:00:04.4]} 63... Kg7 {[%clk
0:00:26.8]} 64. Kb6 {[%clk 0:00:05.3]} 64... Re2 {[%clk 0:00:25.9]} 65. Bf6+
{[%clk 0:00:05.4]} 65... Kg6 {[%clk 0:00:25.7]} 66. Bh4 {[%clk 0:00:05.3]} 66...
Re6+ {[%clk 0:00:24.9]} 67. Kb7 {[%clk 0:00:05.2]} 67... Kg7 {[%clk 0:00:24.4]}
68. Kc7 {[%clk 0:00:03.4]} 68... Kg6 {[%clk 0:00:24.3]} 69. Kb7 {[%clk
0:00:03.5]} 69... Kg7 {[%clk 0:00:24.5]} 70. Rc8 {[%clk 0:00:03.7]} 70... Kf7
{[%clk 0:00:24.1]} 71. c6 {[%clk 0:00:03.5]} 71... Bc4 {[%clk 0:00:20.5]} 72.
Rf8+ {[%clk 0:00:02.6]} 72... Kg7 {[%clk 0:00:20.5]} 73. e8=Q {[%clk 0:00:03.5]}
1-0

[Event "Late-Titled-Tuesday-Blitz-August-29-2023"]
[Site "Chess.com"]
[Date "2023.08.29"]
[Round "1"]
[White "ArmanGhevondyanchess"]
[Black "slidingknight2775"]
[Result "1/2-1/2"]
[WhiteElo "2211"]
[BlackElo "2548"]
[TimeControl "180+1"]
[EndTime "14:08:40 PDT"]
[Termination "Game drawn by agreement"]

1. Nf3 {[%clk 0:03:00.2]} 1... d5 {[%clk 0:02:59.6]} 2. g3 {[%clk 0:02:59.7]}
2... Nf6 {[%clk 0:02:59.4]} 3. Bg2 {[%clk 0:02:59.4]} 3... e6 {[%clk 0:02:59.8]}
4. O-O {[%clk 0:02:58.9]} 4... Be7 {[%clk 0:03:00.1]} 5. d4 {[%clk 0:02:59]}
5... O-O {[%clk 0:03:00.6]} 6. c4 {[%clk 0:02:55.8]} 6... dxc4 {[%clk
0:03:01.5]} 7. Ne5 {[%clk 0:02:55.5]} 7... Nc6 {[%clk 0:03:01.1]} 8. Bxc6 {[%clk
0:02:54.7]} 8... bxc6 {[%clk 0:03:02]} 9. Nxc6 {[%clk 0:02:55.3]} 9... Qe8
{[%clk 0:03:02.7]} 10. Nxe7+ {[%clk 0:02:55.9]} 10... Qxe7 {[%clk 0:03:03.6]}
11. Qa4 {[%clk 0:02:54.8]} 11... e5 {[%clk 0:03:04]} 12. dxe5 {[%clk 0:02:49.9]}
12... Qxe5 {[%clk 0:03:04.9]} 13. Qxc4 {[%clk 0:02:49.8]} 13... Be6 {[%clk
0:03:05.1]} 14. Qc2 {[%clk 0:02:49.6]} 14... Bf5 {[%clk 0:02:53.3]} 15. Qd2
{[%clk 0:02:47.8]} 15... Rfe8 {[%clk 0:02:42.6]} 16. Nc3 {[%clk 0:02:46.8]}
16... Bh3 {[%clk 0:02:35.7]} 17. Re1 {[%clk 0:02:46.2]} 17... Rad8 {[%clk
0:02:35.7]} 18. Qf4 {[%clk 0:02:39.7]} 18... Qh5 {[%clk 0:02:28.6]} 19. Be3
{[%clk 0:02:16.8]} 19... c5 {[%clk 0:02:01.8]} 20. Qg5 {[%clk 0:02:09.4]} 20...
a6 {[%clk 0:01:29.3]} 21. Qxh5 {[%clk 0:02:08.2]} 21... Nxh5 {[%clk 0:01:30.2]}
22. Rad1 {[%clk 0:02:04.4]} 22... c4 {[%clk 0:01:27.5]} 23. Rxd8 {[%clk
0:02:02]} 23... Rxd8 {[%clk 0:01:28.4]} 24. Rd1 {[%clk 0:01:58.3]} 24... Rxd1+
{[%clk 0:01:25.8]} 25. Nxd1 {[%clk 0:01:58.4]} 25... Nf6 {[%clk 0:01:22.8]} 26.
f3 {[%clk 0:01:57.4]} 26... Bf5 {[%clk 0:01:17.9]} 27. Kf2 {[%clk 0:01:53.4]}
27... Nd5 {[%clk 0:01:14.3]} 28. Bd4 {[%clk 0:01:51.9]} 28... Bc2 {[%clk
0:01:03.3]} 29. Ne3 {[%clk 0:01:34.7]} 29... Nxe3 {[%clk 0:01:02.5]} 30. Kxe3
{[%clk 0:01:34.4]} 30... Bb1 {[%clk 0:00:46.5]} 31. a3 {[%clk 0:01:30.9]} 31...
a5 {[%clk 0:00:40.3]} 32. Bc3 {[%clk 0:01:16.7]} 32... a4 {[%clk 0:00:39.3]} 33.
Kd4 {[%clk 0:01:17.3]} 33... Ba2 {[%clk 0:00:38.6]} 34. e4 {[%clk 0:01:13.9]}
34... Bb3 {[%clk 0:00:38.2]} 35. Kd5 {[%clk 0:01:12.8]} 35... Kf8 {[%clk
0:00:29.9]} 36. f4 {[%clk 0:01:11.3]} 36... g6 {[%clk 0:00:27.3]} 37. Kd6 {[%clk
0:01:08.6]} 37... h5 {[%clk 0:00:24.6]} 38. Ke5 {[%clk 0:01:04.2]} 38... Kg7
{[%clk 0:00:22.1]} 39. h3 {[%clk 0:00:58.1]} 39... Kf8 {[%clk 0:00:15.5]} 40. g4
{[%clk 0:00:55.9]} 40... hxg4 {[%clk 0:00:16.4]} 41. hxg4 {[%clk 0:00:56.8]}
41... Ke7 {[%clk 0:00:16.5]} 42. Bb4+ {[%clk 0:00:55.8]} 42... Ke8 {[%clk
0:00:16.1]} 43. f5 {[%clk 0:00:51.6]} 43... gxf5 {[%clk 0:00:12.4]} 44. exf5
{[%clk 0:00:50.8]} 44... Bd1 {[%clk 0:00:08.5]} 45. g5 {[%clk 0:00:50.4]} 45...
Bc2 {[%clk 0:00:09]} 46. Kf6 {[%clk 0:00:48.6]} 46... Be4 {[%clk 0:00:03.1]} 47.
g6 {[%clk 0:00:47.9]} 47... fxg6 {[%clk 0:00:04]} 48. fxg6 {[%clk 0:00:48.8]}
48... Bd5 {[%clk 0:00:02.9]} 49. Kg7 {[%clk 0:00:47.5]} 49... Be4 {[%clk
0:00:02.1]} 50. Kf6 {[%clk 0:00:30.2]} 50... Bd3 {[%clk 0:00:02.7]} 51. Bc3
{[%clk 0:00:20.6]} 51... Be4 {[%clk 0:00:02.1]} 52. Kg7 {[%clk 0:00:20.6]} 52...
Bd3 {[%clk 0:00:02.3]} 53. Bb4 {[%clk 0:00:19.1]} 53... Be4 {[%clk 0:00:02.5]}
54. Kh6 {[%clk 0:00:19.6]} 54... Bd3 {[%clk 0:00:02.5]} 55. Kg5 {[%clk
0:00:17.6]} 55... Bc2 {[%clk 0:00:02.4]} 56. Bc3 {[%clk 0:00:17.6]} 56... Bd3
{[%clk 0:00:02.6]} 57. g7 {[%clk 0:00:18.2]} 57... Kf7 {[%clk 0:00:02.4]} 58.
Kf4 {[%clk 0:00:17.9]} 58... Bc2 {[%clk 0:00:02.4]} 59. Ke3 {[%clk 0:00:18.2]}
59... Bb3 {[%clk 0:00:03]} 60. Kd4 {[%clk 0:00:18.9]} 60... Kg8 {[%clk
0:00:03.7]} 61. Kc5 {[%clk 0:00:19.5]} 61... Kf7 {[%clk 0:00:04.4]} 62. Kd6
{[%clk 0:00:20.2]} 62... Kg8 {[%clk 0:00:05.1]} 63. Ke7 {[%clk 0:00:20.2]} 63...
Ba2 {[%clk 0:00:05.7]} 64. Bf6 {[%clk 0:00:20.3]} 64... Bb3 {[%clk 0:00:06.1]}
65. Kd6 {[%clk 0:00:21.2]} 65... Ba2 {[%clk 0:00:06.7]} 66. Kc5 {[%clk
0:00:21.9]} 66... Bb3 {[%clk 0:00:07.3]} 67. Kb5 {[%clk 0:00:22.6]} 67... Kf7
{[%clk 0:00:07.8]} 68. Kb4 {[%clk 0:00:22.4]} 68... Kg8 {[%clk 0:00:08.1]} 69.
Bc3 {[%clk 0:00:21.8]} 69... Ba2 {[%clk 0:00:08.3]} 70. Kc5 {[%clk 0:00:22.7]}
70... Bb3 {[%clk 0:00:08.7]} 71. Kd6 {[%clk 0:00:23.6]} 71... Kf7 {[%clk
0:00:08.9]} 72. Kd5 {[%clk 0:00:24.5]} 72... Kg8 {[%clk 0:00:09.3]} 73. Ke6
{[%clk 0:00:24.3]} 73... Ba2 {[%clk 0:00:09.2]} 74. Kf6 {[%clk 0:00:25.2]} 74...
Bb3 {[%clk 0:00:09.6]} 75. Kg6 {[%clk 0:00:26.1]} 75... Ba2 {[%clk 0:00:10]} 76.
Kg5 {[%clk 0:00:24.6]} 76... Bb3 {[%clk 0:00:10.4]} 77. Kg4 {[%clk 0:00:25.5]}
77... Ba2 {[%clk 0:00:11]} 78. Kf3 {[%clk 0:00:26.4]} 78... Bb3 {[%clk
0:00:11.6]} 79. Ke3 {[%clk 0:00:27.2]} 79... Kf7 {[%clk 0:00:12.2]} 80. Kd4
{[%clk 0:00:28.1]} 80... Kg8 {[%clk 0:00:12.9]} 81. Kc5 {[%clk 0:00:29]} 81...
Kf7 {[%clk 0:00:13.3]} 82. Kc6 {[%clk 0:00:27]} 82... Kg8 {[%clk 0:00:13.6]} 83.
Kd7 {[%clk 0:00:27.9]} 83... Ba2 {[%clk 0:00:13.8]} 84. Kd8 {[%clk 0:00:27.4]}
84... Bb3 {[%clk 0:00:14.2]} 85. Ke8 {[%clk 0:00:28.3]} 85... Ba2 {[%clk
0:00:14.6]} 1/2-1/2

[Event "Late-Titled-Tuesday-Blitz-August-29-2023"]
[Site "Chess.com"]
[Date "2023.08.29"]
[Round "1"]
[White "AungTZ"]
[Black "dennisodessa"]
[Result "0-1"]
[WhiteElo "2030"]
[BlackElo "2533"]
[TimeControl "180+1"]
[EndTime "14:08:43 PDT"]
[Termination "dennisodessa won on time"]

1. e4 {[%clk 0:02:59.8]} 1... e6 {[%clk 0:03:00.5]} 2. d4 {[%clk 0:02:59.8]}
2... d5 {[%clk 0:03:01.1]} 3. Nc3 {[%clk 0:03:00.1]} 3... Bb4 {[%clk 0:03:01.2]}
4. exd5 {[%clk 0:02:56.2]} 4... c5 {[%clk 0:03:01.8]} 5. a3 {[%clk 0:02:46.4]}
5... Bxc3+ {[%clk 0:02:59.8]} 6. bxc3 {[%clk 0:02:46.5]} 6... Qxd5 {[%clk
0:03:00.7]} 7. Nf3 {[%clk 0:02:44.8]} 7... Nf6 {[%clk 0:03:00.5]} 8. c4 {[%clk
0:02:35.5]} 8... Qd6 {[%clk 0:03:00.7]} 9. c3 {[%clk 0:02:34.7]} 9... O-O {[%clk
0:03:00.5]} 10. Bd3 {[%clk 0:02:33.5]} 10... Nc6 {[%clk 0:03:00.5]} 11. O-O
{[%clk 0:02:32.8]} 11... Rd8 {[%clk 0:03:01.2]} 12. Be3 {[%clk 0:02:10.5]} 12...
b6 {[%clk 0:02:58.8]} 13. Qe2 {[%clk 0:02:05.5]} 13... h6 {[%clk 0:02:51.3]} 14.
Rfd1 {[%clk 0:02:04.9]} 14... Ba6 {[%clk 0:02:49]} 15. dxc5 {[%clk 0:02:01.7]}
15... Qc7 {[%clk 0:02:49.2]} 16. cxb6 {[%clk 0:01:54.8]} 16... axb6 {[%clk
0:02:50.1]} 17. Nd4 {[%clk 0:01:46.7]} 17... Rab8 {[%clk 0:02:35.5]} 18. Nb5
{[%clk 0:01:43.7]} 18... Qe7 {[%clk 0:02:34.4]} 19. Bf4 {[%clk 0:01:21.1]} 19...
Rbc8 {[%clk 0:02:28.2]} 20. Bd6 {[%clk 0:01:04.9]} 20... Qb7 {[%clk 0:02:14.4]}
21. Bg3 {[%clk 0:01:01.5]} 21... Bxb5 {[%clk 0:02:00.4]} 22. cxb5 {[%clk
0:01:01.1]} 22... Na5 {[%clk 0:02:01.3]} 23. Be5 {[%clk 0:00:53.3]} 23... Ne8
{[%clk 0:01:55.3]} 24. Be4 {[%clk 0:00:39.2]} 24... Qe7 {[%clk 0:01:55]} 25. a4
{[%clk 0:00:33.9]} 25... Nb3 {[%clk 0:01:52.4]} 26. Rxd8 {[%clk 0:00:29.3]}
26... Rxd8 {[%clk 0:01:50.4]} 27. Rd1 {[%clk 0:00:29.3]} 27... Nc5 {[%clk
0:01:44.9]} 28. Bc2 {[%clk 0:00:28.1]} 28... Nf6 {[%clk 0:01:36]} 29. Bd4 {[%clk
0:00:28.1]} 29... Nfd7 {[%clk 0:01:34.5]} 30. h3 {[%clk 0:00:26.1]} 30... Ra8
{[%clk 0:01:28]} 31. Qc4 {[%clk 0:00:20.9]} 31... Kf8 {[%clk 0:01:14.7]} 32. Be3
{[%clk 0:00:19.8]} 32... Ra7 {[%clk 0:01:04.5]} 33. Bc1 {[%clk 0:00:20]} 33...
Ne5 {[%clk 0:00:58.6]} 34. Qe2 {[%clk 0:00:18.8]} 34... f6 {[%clk 0:00:56.1]}
35. Ba3 {[%clk 0:00:18.7]} 35... Kf7 {[%clk 0:00:54.9]} 36. f4 {[%clk
0:00:18.1]} 36... Ned7 {[%clk 0:00:55.1]} 37. Qg4 {[%clk 0:00:16.6]} 37... Nf8
{[%clk 0:00:53.5]} 38. Qh5+ {[%clk 0:00:15.2]} 38... Kg8 {[%clk 0:00:53.2]} 39.
Bxc5 {[%clk 0:00:14.9]} 39... bxc5 {[%clk 0:00:50.7]} 40. Qf3 {[%clk 0:00:14.9]}
40... Qc7 {[%clk 0:00:45.1]} 41. Qe4 {[%clk 0:00:12.8]} 41... Kf7 {[%clk
0:00:36.3]} 42. Bb3 {[%clk 0:00:12.1]} 42... Ke7 {[%clk 0:00:35.9]} 43. f5
{[%clk 0:00:12.8]} 43... c4 {[%clk 0:00:30.1]} 44. fxe6 {[%clk 0:00:12.1]} 44...
cxb3 {[%clk 0:00:29.4]} 45. Qb4+ {[%clk 0:00:12.8]} 45... Ke8 {[%clk 0:00:29.9]}
46. b6 {[%clk 0:00:12.5]} 46... Qb7 {[%clk 0:00:22.1]} 47. bxa7 {[%clk
0:00:12.9]} 47... Qxa7+ {[%clk 0:00:23]} 48. Kh1 {[%clk 0:00:07.3]} 48... Nxe6
{[%clk 0:00:22.9]} 49. Re1 {[%clk 0:00:07.6]} 49... Kf7 {[%clk 0:00:22.5]} 50.
Qxb3 {[%clk 0:00:07.9]} 50... Qd7 {[%clk 0:00:21.6]} 51. Qxe6+ {[%clk
0:00:08.8]} 51... Qxe6 {[%clk 0:00:21.8]} 52. Rxe6 {[%clk 0:00:09.7]} 52... Kxe6
{[%clk 0:00:22.7]} 53. Kg1 {[%clk 0:00:10.6]} 53... Kd6 {[%clk 0:00:23.1]} 54.
Kf2 {[%clk 0:00:11.5]} 54... Kc5 {[%clk 0:00:24]} 55. Kf3 {[%clk 0:00:12.4]}
55... Kb6 {[%clk 0:00:22.5]} 56. Kf4 {[%clk 0:00:13.3]} 56... g6 {[%clk
0:00:23]} 57. h4 {[%clk 0:00:13.9]} 57... Ka5 {[%clk 0:00:23.4]} 58. h5 {[%clk
0:00:14.8]} 58... gxh5 {[%clk 0:00:22.5]} 59. Kf5 {[%clk 0:00:15.7]} 59... Kxa4
{[%clk 0:00:22.9]} 60. Kxf6 {[%clk 0:00:16.6]} 60... Kb3 {[%clk 0:00:23.5]} 61.
Kg6 {[%clk 0:00:17.5]} 61... Kxc3 {[%clk 0:00:24]} 62. Kxh6 {[%clk 0:00:18.4]}
62... h4 {[%clk 0:00:22.3]} 63. Kh5 {[%clk 0:00:19.3]} 63... h3 {[%clk
0:00:22.8]} 64. Kh4 {[%clk 0:00:20.2]} 64... hxg2 {[%clk 0:00:22.5]} 65. Kg3
{[%clk 0:00:20.7]} 65... g1=Q+ {[%clk 0:00:23.4]} 0-1